{"text_format":"1","workbook":"xlsx","n_sheets":1,"sheets":["Расчет"],"not_rendered":{"charts":0,"images":12,"macros":1,"external_links":0,"defined_names":2,"comments":0,"pivot_tables":0},"unopened":[],"bounds":{"document_bytes":16777216,"sheet_cells":100000,"rows_first":2000,"rows_last":500,"rows_between":2000,"halvings":0,"cell_chars":16384,"cell_head_chars":4096},"cells_cut":0,"cells_raw":0,"read":"whole","date_system":"1900"}

{"sheet":"Расчет","index":0,"n_rows":81,"n_cols":26,"rows_kept":81,"cut":false,"hidden":false,"merged":[[68,0,68,5],[69,0,69,5],[70,0,70,5],[76,0,77,7],[78,3,80,7],[74,6,74,7],[0,0,0,8],[2,0,2,8],[64,0,64,5],[65,0,65,5],[14,0,14,7],[3,8,7,8],[13,8,80,8],[78,0,78,1],[79,0,79,1],[80,0,80,1],[63,0,63,7],[56,2,56,7],[71,0,71,5],[66,0,66,5],[67,0,67,5],[41,3,42,3],[41,1,42,1],[3,10,5,10],[3,11,3,12],[4,11,4,12],[2,10,2,12],[41,4,42,4],[41,5,42,5],[41,6,42,6],[41,7,42,7]]}
["Расчет токопотребления системы Vesta 01F от источника питания 12В или 24В "]
[null,"Выберите напряжение питания","Кол-во\nустройств","Максимальное количество одновременно срабатывающих*","Ток потребления единицы от линии в дежурном режиме, мА","Ток потребления единицы от линии в режиме тревоги, мА","Всего от линии в дежурном режиме, мА","Всего от линии в режиме тревоги, мА","Количество линий оповещателей\n AMC"]
["Токопотребляющее оборудование сторонних производителей",null,null,null,null,null,null,null,null,null,"ЭКРАН-ИНФО-RGB-а\nТаблица потребления от ИБЭ"]
["Линейные дымовые извещатели\n",{"$f":"IF(Z81=1,\"12В\",\"24В\")","v":"24В"},0,null,0,0,{"$f":"C4*E4","v":0},{"$f":"C4*F4","v":0},null,null,"Режим работы, цвет изображения и заполнение в процентах от всего поля","Напряжение питания, В /"]
["ЭКРАН-ИНФО-RGB-а\nРасчет потребления от ИБЭ\nДанные брать из таблицы суммируя",{"$f":"IF(Z81=1,\"12В\",\"24В\")","v":"24В"},{"$f":"C42","v":0},null,0,0,{"$f":"1*E5","v":0},{"$f":"1*F5","v":0},null,null,null,"Потребляемый ток, не более, мА"]
["Линейные тепловые извещатели\n",{"$f":"IF(Z81=1,\"12В\",\"24В\")","v":"24В"},0,null,0,0,{"$f":"C6*E6","v":0},{"$f":"C6*F6","v":0},null,null,null,"12VDC","24VDC"]
["Иные датчики и извещатели\n",{"$f":"IF(Z81=1,\"12В\",\"24В\")","v":"24В"},0,null,0,0,0,0,null,null,"Дежурный режим",50,35]
["Клапаны ОЗК, ДУ\n",{"$f":"IF(Z81=1,\"12В\",\"24В\")","v":"24В"},0,null,0,0,{"$f":"C8*E8","v":0},{"$f":"C8*F8","v":0},null,null,"Заливка белым цветом 50/100%","528/800","292/423"]
["Световые табло\n",{"$f":"IF(Z81=1,\"12В\",\"24В\")","v":"24В"},0,null,0,0,{"$f":"C9*E9","v":0},{"$f":"C9*F9","v":0},0,null,"Заливка голубым цветом 50/100%","378/501","222/288"]
["Световые оповещатели\n",{"$f":"IF(Z81=1,\"12В\",\"24В\")","v":"24В"},0,null,0,0,{"$f":"C10*E10","v":0},{"$f":"C10*F10","v":0},0,null,"Заливка желтым цветом 50/100%","480/710","272/383"]
["Звуковые оповещатели\n",{"$f":"IF(Z81=1,\"12В\",\"24В\")","v":"24В"},0,null,0,0,0,0,0,null,"Заливка зеленым цветом 50/100%","336/416","202/247"]
["Иные оповещатели\n",{"$f":"IF(Z81=1,\"12В\",\"24В\")","v":"24В"},0,null,0,0,0,0,0,null,"Заливка красным цветом 50/100%","396/528","230/301"]
["Иные токопотребляющие устройства\n",{"$f":"IF(Z81=1,\"12В\",\"24В\")","v":"24В"},0,null,0,0,{"$f":"C13*E13","v":0},{"$f":"C13*F13","v":0},0,null,"Заливка фиолетовым цветом 50/100%","438/612","250/339"]
["Неадресные УДП\n",null,0,null,null,null,null,null,null,null,"Заливка синим цветом 50/100%","288/322","179/203"]
["Оборудование серии Vesta",null,null,null,null,null,null,null,null,null,"Сирена (звук)",248,160]
["Адресная метка теплового  или нормально-замкнутого датчика","AM-NC",0,0,2,2,{"$f":"E16*C16","v":0},{"$f":"F16*C16","v":0}]
["Адресная метка безадресного извещателя или нормально-разомкнутого датчика\nВведите необходимое количество не менее указанного строкой ниже\n* ВНИМАНИЕ! Расчет делается с учетом отключения сработавших AM-NO. При этом указывается максимальное количество одновременно срабатывающих AM-NO.","AM-NO",0,0,1.2,7,0,{"$f":"F17*IF(C17>D17,D17,C17)+E17*IF(C17>D17,C17-D17,0)","v":0}]
["Адресная метка безадресного извещателя или нормально-разомкнутого датчика \n(Минимально необходимое количество модулей)","AM-NO ",{"$f":"ROUNDUP(C14,0) + ROUNDUP(C4,0)","v":0}]
["Адресный модуль группы тепловых или нормально-замкнутых датчиков ","AMZ-NC",0,0,4,4,0,{"$f":"F19*C19","v":0}]
["Адресный модуль группы безадресныых извещателей или нормально-разомкнутых датчиков \n* ВНИМАНИЕ! Расчет делается с учетом отключения сработавших AMZ–NO. При этом указывается максимальное количество одновременно срабатывающих AMZ–NO.\n","AMZ–NO",0,0,3.2,11,0,{"$f":"F20*IF(C20>D20,D20,C20)+E20*IF(C20>D20,C20-D20,0)","v":0}]
["Адресный модуль на 1 реле\nВведите необходимое количество не менее указанного строкой ниже","AMR ",0,null,1.5,1.5,0,{"$f":"F21*C21","v":0}]
["Адресный модуль на 1 реле\n(Минимально необходимое количество модулей)","AMR",{"$f":"C4","v":0}]
["Адресный модуль пуска ","AMS",0,null,2,2,0,{"$f":"F23*C23","v":0}]
["Адресный модуль управления клапаном 220/24В\nВведите необходимое количество не менее указанного строкой ниже","AMK",0,null,2,2,0,{"$f":"F24*C24","v":0}]
["Адресный модуль управления клапаном 220/24В  \n(Минимально необходимое количество модулей)","AMK/AMK-DC",{"$f":"ROUNDUP(C8,0)","v":0}]
["Адресный модуль управления\nс питанием от адресного шлейфа.\nВозможно подключение исполнительного устр-ва с током потребления не более 20мА"," AMC",0,null,22,22,{"$f":"E26*C26","v":0},{"$f":"F26*C26","v":0}]
["Адресный модуль управления  \nс питанием от внешнего источника.\nВведите необходимое количество не менее указанного строкой ниже","AMC",0,null,2,2,{"$f":"E27*C27","v":0},{"$f":"F27*C27","v":0}]
["Адресный модуль управления  \nс питанием от внешнего источника. \n(Минимально необходимое количество модулей)","AMC",{"$f":"ROUNDUP(IF(((H9+H10+H11+H12+H13)/2000)<(I9+I10+I11+I12+I13),(I9+I10+I11+I12+I13),((H9+H10+H11+H12+H13)/2000)),0)","v":0}]
["Адресный световой оповещатель  \nстандартная светоотдача","AVO",0,null,5,5,{"$f":"E29*C29","v":0},{"$f":"F29*C29","v":0}]
["Адресный световой оповещатель\nс повышенной светоотдачей","AVO",0,null,10,10,{"$f":"E30*C30","v":0},{"$f":"F30*C30","v":0}]
["Изолятор линии\nМаксимальное количество изоляторов на 1 центральный блок 24","ISO-FP",0,null,1,1,0,0]
["Адресный модуль на 8 входов ","AMZ-8",0,null,7,7,0,0]
["Адресный модуль на 4 входа/4 выхода","AMС-44",0,null,2,2,{"$f":"E33*C33","v":0},{"$f":"F33*C33","v":0}]
["Адресный модуль на 4 выхода","AMR-4",0,null,7,7,0,0]
["Адресный модуль на 4входа/2выхода","AMC-42",0,null,7,7,0,0]
["Модуль сопряжения (с извещателями серии Vesta)\nВведите необходимое количество не менее указанного строкой ниже","MC",0,null,20,20,{"$f":"E36*C36","v":0},{"$f":"F36*C36","v":0}]
["Модуль сопряжения MC (с извещателями серии Vesta) (Минимально необходимое количество модулей)","MC",{"$f":"ROUNDUP(C38/60,0)","v":0}]
["Извещатель серии Vesta (дымовой, тепловой, комбинированный, ручной) в линию \"ЛА\"\nВведите общее количество извещателей  (дымовой, тепловой, комбинированный, ручной)","Vesta-S, Vesta-T, Vesta-ST,Vesta-FDM",0]
["Адресные ИПР и УДП в линию \"ША\"","ИП 513-2SF-A, ИП 513-3SF-A, УДП-2SF-A, УДП-3SF-A",0,null,1.5,1.5,{"$f":"E39*C39","v":0},{"$f":"F39*C39","v":0}]
["Шкаф управления и контроля\nВ составе модуль контроля питания AM-PC и модуль AMC-42","ШУК",0,null,8.5,8.5,{"$f":"E40*C40","v":0},{"$f":"F40*C40","v":0}]
["Оповещатель пожарный взрывозащищенный адресный","ЭКРАН-а",0,null,2,2,{"$f":"E41*C41","v":0},{"$f":"F41*C41","v":0}]
["Оповещатель пожарный взрывозащищенный многоцветный адресный\n\nРасчет внешнего питания произвести в таблице выше в соответствии с расчетными значениями","\nКоличество утройств\n\nЭКРАН-ИНФО-RGB-а\n\nКоличество режимов работы",0,null,2,2,{"$f":"E42*C42","v":0},{"$f":"F42*C42","v":0}]
["Введите суммарное количество режимов работы всех оповещателей ЭКРАН-ИНФО-RGB-а",null,0]
["Оповещатель пожарный взрывозащищенный звуковой адресный","ВС-07е-а-Ех-З",0,null,{"$f":"2","v":2},{"$f":"2","v":2},{"$f":"E44*C44","v":0},{"$f":"F44*C44","v":0}]
["Оповещатель пожарный взрывозащищенный светозвуковой адресный","ВС-07е-а-Ех-ЗИ",0,null,{"$f":"2","v":2},{"$f":"2","v":2},0,0]
["Извещатель пожарный пламени взрывозащищенный адресный\nБЕЗ ПОДОГРЕВА","ИПП-07еа-330-1",0,null,{"$f":"2","v":2},{"$f":"2","v":2},0,0]
["Извещатель пожарный пламени взрывозащищенный адресный\nС ПОДОГРЕВОМ","ИПП-07еа-330-1",0,null,{"$f":"2","v":2},{"$f":"2","v":2},0,0]
["Извещатель пожарный пламени взрывозащищенный адресный\nБЕЗ ПОДОГРЕВА","ИПП-07еа-329/330-1",0,null,{"$f":"2","v":2},{"$f":"2","v":2},0,0]
["Извещатель пожарный пламени взрывозащищенный адресный\nС ПОДОГРЕВОМ","ИПП-07еа-329/330-1",0,null,{"$f":"2","v":2},{"$f":"2","v":2},0,0]
["Извещатель пожарный тепловой взрывозащищенный адресный","ИП101-07а",0,null,1,1,0,0]
["Извещатель пожарный ручной взрывозащищенный адресный","ИП535-07еа",0,null,1,1,0,0]
["Устройство дистанционного пуска взрывозащищенное адресное","ИП535-07еа-«ПУСК»",0,null,1,1,0,0]
[null,null,0]
["Итого адресов в системе:",null,{"$f":"SUM(C15:C52)-C37-C28-C25-C18-C22-C31-C34-C33-C32-C35-C40+(C75*5)+(D75*5)+(E75*5)+(F75*5)+(C32*8)+(C33*8)+(C34*4)+(C35*6)+(C40*9)","v":0}]
["Итого линий \"ША\" в системе \n(Минимально необходимое количество линий \"ША\"):",null,{"$f":"ROUNDUP(C54/255,0)","v":0}]
["Итого ток потребления в шлейфе, мА:",null,null,null,null,null,{"$f":"SUM(G16:G53)","v":0},{"$f":"SUM(H16:H53)","v":0}]
[null,null,"Количество адресов в одном центральном блоке не должно превышать 255, а потребление - 280мА"]
[]
["Центральный блок  FP-01\nМинимально необходимое количество центральных блоков в системе\nНЕ БОЛЕЕ 63 ЦБ и БИУ в системе ",null,{"$f":"MAX(D59:E59)","v":0},{"$f":"ROUNDUP(C54/255,0)","v":0},{"$f":"ROUNDUP(H56/280,0)","v":0}]
["Центральный блок  FP-01\nВведите необходимое количество не менее указанного строкой выше, но не более 63",{"$f":"IF(Z81=1,\"12В\",\"24В\")","v":"24В"},0]
[null,null,0]
["Максимальное количество блоков индикации и управления\nНЕ БОЛЕЕ 63 ЦБ и БИУ в системе ",null,{"$f":"(63-C63)","v":63}]
["Блок индикации и управления\nВведите необходимое количество не более указанного строкой выше, но не более 63",{"$f":"IF(Z81=1,\"12В\",\"24В\")","v":"24В"},0]
["Общее потребление центрального блока по входу питания 12В и 24В, с учетом потребления адресных устройств"]
["Собственное потребление центрального блока при 12В, мА",null,null,null,null,null,{"$f":"IF(Z81=1,(200*C60),0)","v":0},{"$f":"IF(Z81=1,(230*C60),0)","v":0}]
["Потребление линейных устройств, пересчитанное к входу питания 12В, мА",null,null,null,null,null,{"$f":"IF(Z81=1,(G56*4),0)","v":0},{"$f":"IF(Z81=1,(H56*4),0)","v":0}]
["Итого по питанию с учетом навесного оборудования 12В, мА:",null,null,null,null,null,{"$f":"IF(Z81=1,(SUMIF(B4:B13, \"12В\", G4:G14)+G65+G66+C63*200+(IF((C44>0),(35*С44),0))+(IF((C45>0),(90*C45),0))+(IF((C46>0),(20*C46),0))+(IF((C47>0),(200*C47),0))+(IF((C48>0),(20*C48),0))+(IF((C49>0),(200*C49),0))),0)","v":0},{"$f":"IF(Z81=1,(SUMIF(B4:B13, \"12В\", H4:H14)+H65+H66+C63*200+(IF((C44>0),(35*C44),0))+(IF((C45>0),(90*C45),0))+(IF((C46>0),(20*C46),0))+(IF((C47>0),(200*C47),0))+(IF((C48>0),(20*C48),0))+(IF((C49>0),(200*C49),0))),0)","v":0}]
["Мин.Необходимая Емкость АКБ в Ач (24ч дежурный режим и 1ч Тревоги)",null,null,null,null,null,{"$f":"(24*G67)*1.43/1000","v":0},{"$f":"ROUNDUP((1*H67)*1.43/1000,0)","v":0}]
["Собственное потребление центрального блока при 24В, мА",null,null,null,null,null,{"$f":"IF(Z81=2,(100*C60),0)","v":0},{"$f":"IF(Z81=2,(115*C60),0)","v":0}]
["Потребление линейных устройств, пересчитанное к входу питания 24В, мА",null,null,null,null,null,{"$f":"IF(Z81=2,(G56*2),0)","v":0},{"$f":"IF(Z81=2,(H56*2),0)","v":0}]
["Итого по питанию с учетом навесного оборудования 24В, мА:",null,null,null,null,null,{"$f":"IF(Z81=2,(SUMIF(B4:B13, \"24В\", G4:G14)+G69+G70+C63*200+(IF((C44>0),(70*C44),0))+(IF((C45>0),(120*C45),0))+(IF((C46>0),(20*C46),0))+(IF((C47>0),(200*C47),0))+(IF((C48>0),(20*C48),0))+(IF((C49>0),(200*C49),0))),0)","v":0},{"$f":"IF(Z81=2,(SUMIF(B4:B13, \"24В\", H4:H14)+H69+H70+C63*200+(IF((C44>0),(70*C44),0))+(IF((C45>0),(120*C45),0))+(IF((C46>0),(20*C46),0))+(IF((C47>0),(200*C47),0))+(IF((C48>0),(20*C48),0))+(IF((C49>0),(200*C49),0))),0)","v":0}]
["Мин.Необходимая Емкость АКБ в Ач (24ч дежурный режим и 1ч Тревоги)",null,null,null,null,null,{"$f":"(24*G71)*1.43/1000","v":0},{"$f":"ROUNDUP((1*H71)*1.43/1000,0)","v":0}]
[null,null,"На 12 В 6А\nPS12-6","На 24 В 3А\nPS24-3","На 12 В 2.5А\nPS12-2.5","На 24 В 1.3А\nPS24-1.3"]
["Итого ИБЭ (Выбрать один из Блоков питания)\nМинимально необходимое количество ИБП в системе с учетом 15% резерва",null,{"$f":"ROUNDUP(H67/5100,0)","v":0},{"$f":"ROUNDUP(H71/2550,0)","v":0},{"$f":"ROUNDUP(H67/2125,0)","v":0},{"$f":"ROUNDUP(H71/1105,0)","v":0}]
["Выберите один из типов ИБЭ (12В или 24В) и введите количество \n(но не менее указанного выше)\nКаждый ИБЭ занимает от 1 до 5 адресов в системе",null,0,0,0,0,"Выбрать только один тип ИБЭ"]
["Мин.Необходимая Емкость АКБ (Ач) на всю систему\n(24ч дежурный режим + 1ч Тревоги)",null,{"$f":"IF(C75>0,((24*G67+1*H67)/1000)*1.43,0)","v":0},{"$f":"IF(D75>0,((24*G71+1*H71)/1000)*1.43,0)","v":0},{"$f":"IF(E75>0,((24*G67+1*H67)/1000)*1.43,0)","v":0},{"$f":"IF(F75>0,((24*G71+1*H71)/1000)*1.43,0)","v":0}]
[]
[]
["Ячейки помеченные серым рассчитываются автоматически"]
["Ячейки помеченные красным не удовлетворяют необходимым минимальным параметрам системы",null,null,null,null,null,null,null,null,null,null,null,null,null,null,null,null,null,null,null,null,null,null,null,"12В"]
["Ячейки помеченные зеленым необходимо ввести свои параметры системы",null,null,null,null,null,null,null,null,null,null,null,null,null,null,null,null,null,null,null,null,null,null,null,"24В",2]